[Event "Titled Tuesday Blitz January 03 Late 2023"]
[White "Pesotskiy, Mikhail"]
[Black "Sariego Figueredo, Wilfredo"]
[WhiteFideId "34164453"]
[BlackFideId "3500080"]
[WhiteElo "2153"]
[BlackElo "2318"]
[Result "0-1"]
[Round "08"]
[TimeControl "180+2"]
[Date "2023.01.03"]
[WhiteClock "0:01:38"]
[BlackClock "0:00:41"]

1. d4 {[%clk 0:02:56]}  d5 {[%clk 0:02:59]} 2. c4 {[%clk 0:02:56]}  c6 {[%clk 0:02:59]} 3. Nf3 {[%clk 0:02:55]}  Nf6 {[%clk 0:02:59]} 4. Nbd2 {[%clk 0:02:54]}  a6 {[%clk 0:02:58]} 5. e3 {[%clk 0:02:52]}  Bf5 {[%clk 0:02:55]} 6. Nh4 {[%clk 0:02:50]}  Bg6 {[%clk 0:02:46]} 7. Nxg6 {[%clk 0:02:45]}  hxg6 {[%clk 0:02:47]} 8. Bd3 {[%clk 0:02:45]}  e6 {[%clk 0:02:46]} 9. Nf3 {[%clk 0:02:39]}  Bd6 {[%clk 0:02:42]} 10. h3 {[%clk 0:02:39]}  b5 {[%clk 0:02:37]} 11. cxd5 {[%clk 0:02:38]}  cxd5 {[%clk 0:02:33]} 12. O-O {[%clk 0:02:39]}  Nbd7 {[%clk 0:02:27]} 13. Bd2 {[%clk 0:02:38]}  O-O {[%clk 0:02:08]} 14. Rc1 {[%clk 0:02:37]}  Qe7 {[%clk 0:02:03]} 15. Ba5 {[%clk 0:02:22]}  e5 {[%clk 0:01:54]} 16. dxe5 {[%clk 0:02:10]}  Nxe5 {[%clk 0:01:52]} 17. Bc3 {[%clk 0:02:10]}  Nxf3+ {[%clk 0:01:33]} 18. Qxf3 {[%clk 0:02:09]}  Ne4 {[%clk 0:01:33]} 19. Rfd1 {[%clk 0:01:59]}  Rfc8 {[%clk 0:01:23]} 20. Bd4 {[%clk 0:01:59]}  Qe6 {[%clk 0:01:02]} 21. Qg4 {[%clk 0:01:53]}  f5 {[%clk 0:00:56]} 22. Qe2 {[%clk 0:01:44]}  Rxc1 {[%clk 0:00:49]} 23. Rxc1 {[%clk 0:01:44]}  Rc8 {[%clk 0:00:50]} 24. Rxc8+ {[%clk 0:01:42]}  Qxc8 {[%clk 0:00:51]} 25. Qc2 {[%clk 0:01:43]}  Qb8 {[%clk 0:00:45]} 26. Qb3 {[%clk 0:01:40]}  Bh2+ {[%clk 0:00:41]} 27. Kf1 {[%clk 0:01:39]}  Nd2+ {[%clk 0:00:41]} 28. Ke2 {[%clk 0:01:38]}  Nxb3 {[%clk 0:00:41]} 29. axb3 {[%clk 0:01:38]}  Be5 {[%clk 0:00:41]} 0-1


[Site "https://www.chess.com"]

[Event "Titled Tuesday Blitz January 03 Late 2023"]
[White "Smith, Garrett L"]
[Black "Dinu, Dumitru-Daniel"]
[WhiteFideId "2024829"]
[BlackFideId "1208403"]
[WhiteElo "2047"]
[BlackElo "2203"]
[Result "0-1"]
[Round "08"]
[TimeControl "180+2"]
[Date "2023.01.03"]
[WhiteClock "0:01:34"]
[BlackClock "0:01:32"]

1. e4 {[%clk 0:03:00]}  c5 {[%clk 0:02:58]} 2. a3 {[%clk 0:02:59]}  Nc6 {[%clk 0:02:57]} 3. b4 {[%clk 0:02:59]}  cxb4 {[%clk 0:02:57]} 4. axb4 {[%clk 0:02:59]}  d5 {[%clk 0:02:58]} 5. b5 {[%clk 0:02:58]}  Nd4 {[%clk 0:02:50]} 6. Bb2 {[%clk 0:02:54]}  e5 {[%clk 0:02:50]} 7. exd5 {[%clk 0:02:43]}  Qxd5 {[%clk 0:02:48]} 8. Nc3 {[%clk 0:02:42]}  Qe6 {[%clk 0:02:40]} 9. Nge2 {[%clk 0:02:32]}  Nf6 {[%clk 0:02:30]} 10. d3 {[%clk 0:02:25]}  Bb4 {[%clk 0:02:29]} 11. Ba3 {[%clk 0:02:14]}  Nd5 {[%clk 0:02:11]} 12. Bxb4 {[%clk 0:02:08]}  Nxb4 {[%clk 0:02:10]} 13. Nxd4 {[%clk 0:02:05]}  exd4+ {[%clk 0:02:08]} 14. Ne2 {[%clk 0:02:05]}  O-O {[%clk 0:02:07]} 15. Qd2 {[%clk 0:01:59]}  Nd5 {[%clk 0:02:06]} 16. g3 {[%clk 0:01:42]}  Re8 {[%clk 0:01:59]} 17. Bg2 {[%clk 0:01:34]}  Nc3 {[%clk 0:01:57]} 18. Bf3 {[%clk 0:01:34]}  Qf5 {[%clk 0:01:49]} 19. Qf4 {[%clk 0:01:34]}  Qxf4 {[%clk 0:01:36]} 20. gxf4 {[%clk 0:01:34]}  Nxe2 {[%clk 0:01:32]} 21. Bxe2 {[%clk 0:01:34]}  Bg4 {[%clk 0:01:32]} 0-1


[Site "https://www.chess.com"]

[Event "Titled Tuesday Blitz January 03 Late 2023"]
[White "Fernandez Hernandez, Gerardo"]
[Black "Roman, Rodrigo"]
[WhiteFideId "2207400"]
[BlackFideId "3701220"]
[WhiteElo "2181"]
[BlackElo "2058"]
[Result "1-0"]
[Round "08"]
[TimeControl "180+2"]
[Date "2023.01.03"]
[WhiteClock "0:00:16"]
[BlackClock "0:00:45"]

1. e4 {[%clk 0:03:00]}  c5 {[%clk 0:02:57]} 2. d3 {[%clk 0:03:01]}  Nc6 {[%clk 0:02:56]} 3. g3 {[%clk 0:03:01]}  g6 {[%clk 0:02:57]} 4. Bg2 {[%clk 0:03:01]}  Bg7 {[%clk 0:02:57]} 5. f4 {[%clk 0:03:02]}  e5 {[%clk 0:02:58]} 6. Nf3 {[%clk 0:02:59]}  d6 {[%clk 0:02:59]} 7. O-O {[%clk 0:02:58]}  Nge7 {[%clk 0:02:58]} 8. f5 {[%clk 0:02:58]}  gxf5 {[%clk 0:02:58]} 9. Nh4 {[%clk 0:02:59]}  f4 {[%clk 0:02:55]} 10. Qh5 {[%clk 0:02:58]}  Ng6 {[%clk 0:02:56]} 11. Nf5 {[%clk 0:02:57]}  Qf6 {[%clk 0:02:50]} 12. Nc3 {[%clk 0:02:45]}  Nce7 {[%clk 0:02:47]} 13. gxf4 {[%clk 0:02:15]}  exf4 {[%clk 0:02:40]} 14. Nxg7+ {[%clk 0:01:58]}  Qxg7 {[%clk 0:02:41]} 15. Bxf4 {[%clk 0:01:57]}  Nxf4 {[%clk 0:02:36]} 16. Rxf4 {[%clk 0:01:56]}  Rg8 {[%clk 0:02:37]} 17. Rf2 {[%clk 0:01:48]}  Bg4 {[%clk 0:02:18]} 18. Qh4 {[%clk 0:01:36]}  Bf3 {[%clk 0:02:17]} 19. Qh3 {[%clk 0:01:25]}  Bxg2 {[%clk 0:02:15]} 20. Rxg2 {[%clk 0:01:25]}  Qd4+ {[%clk 0:02:11]} 21. Kh1 {[%clk 0:01:22]}  Rxg2 {[%clk 0:02:12]} 22. Qxg2 {[%clk 0:01:22]}  O-O-O {[%clk 0:02:11]} 23. Rf1 {[%clk 0:01:10]}  Rg8 {[%clk 0:02:08]} 24. Qf2 {[%clk 0:00:56]}  Qxf2 {[%clk 0:02:04]} 25. Rxf2 {[%clk 0:00:57]}  Rg7 {[%clk 0:02:04]} 26. Nb5 {[%clk 0:00:51]}  Kd7 {[%clk 0:02:03]} 27. Nxa7 {[%clk 0:00:48]}  f5 {[%clk 0:01:50]} 28. exf5 {[%clk 0:00:43]}  Rf7 {[%clk 0:01:51]} 29. f6 {[%clk 0:00:34]}  Nd5 {[%clk 0:01:44]} 30. Nb5 {[%clk 0:00:32]}  Nxf6 {[%clk 0:01:44]} 31. Nc3 {[%clk 0:00:31]}  Ke6 {[%clk 0:01:35]} 32. Ne4 {[%clk 0:00:23]}  Nxe4 {[%clk 0:01:09]} 33. Rxf7 {[%clk 0:00:24]}  Kxf7 {[%clk 0:01:09]} 34. dxe4 {[%clk 0:00:24]}  Kf6 {[%clk 0:01:09]} 35. Kg2 {[%clk 0:00:24]}  Ke5 {[%clk 0:01:09]} 36. Kf3 {[%clk 0:00:25]}  b5 {[%clk 0:01:06]} 37. c3 {[%clk 0:00:25]}  h6 {[%clk 0:00:59]} 38. b3 {[%clk 0:00:23]}  b4 {[%clk 0:00:56]} 39. cxb4 {[%clk 0:00:19]}  cxb4 {[%clk 0:00:57]} 40. Ke3 {[%clk 0:00:19]}  h5 {[%clk 0:00:52]} 41. h4 {[%clk 0:00:19]}  Ke6 {[%clk 0:00:48]} 42. Kd4 {[%clk 0:00:19]}  Kf6 {[%clk 0:00:46]} 43. Kd5 {[%clk 0:00:17]}  Ke7 {[%clk 0:00:45]} 44. e5 {[%clk 0:00:17]}  dxe5 {[%clk 0:00:45]} 45. Kxe5 {[%clk 0:00:18]}  Kf7 {[%clk 0:00:45]} 46. Kf5 {[%clk 0:00:16]} 1-0


[Site "https://www.chess.com"]

[Event "Titled Tuesday Blitz January 03 Late 2023"]
[White "Aung Thant Zin"]
[Black "Kostiukov, Alexandr"]
[WhiteFideId "13000063"]
[BlackFideId "14108100"]
[WhiteElo "2268"]
[BlackElo "2271"]
[Result "0-1"]
[Round "08"]
[TimeControl "180+2"]
[Date "2023.01.03"]
[WhiteClock "0:00:40"]
[BlackClock "0:01:09"]

1. e4 {[%clk 0:02:56]}  c5 {[%clk 0:02:56]} 2. Nf3 {[%clk 0:02:56]}  g6 {[%clk 0:02:56]} 3. d4 {[%clk 0:02:56]}  cxd4 {[%clk 0:02:57]} 4. Nxd4 {[%clk 0:02:56]}  Bg7 {[%clk 0:02:57]} 5. Nc3 {[%clk 0:02:56]}  Nc6 {[%clk 0:02:57]} 6. Be3 {[%clk 0:02:54]}  Nf6 {[%clk 0:02:57]} 7. f3 {[%clk 0:02:53]}  O-O {[%clk 0:02:57]} 8. Be2 {[%clk 0:02:53]}  d5 {[%clk 0:02:57]} 9. Nxc6 {[%clk 0:02:49]}  bxc6 {[%clk 0:02:57]} 10. e5 {[%clk 0:02:50]}  Nd7 {[%clk 0:02:55]} 11. f4 {[%clk 0:02:51]}  e6 {[%clk 0:02:54]} 12. Na4 {[%clk 0:02:40]}  Nxe5 {[%clk 0:02:54]} 13. fxe5 {[%clk 0:02:34]}  Qh4+ {[%clk 0:02:54]} 14. g3 {[%clk 0:02:31]}  Qxa4 {[%clk 0:02:54]} 15. Bc5 {[%clk 0:02:23]}  Re8 {[%clk 0:02:35]} 16. O-O {[%clk 0:01:48]}  Bxe5 {[%clk 0:02:28]} 17. c3 {[%clk 0:01:40]}  Qa5 {[%clk 0:01:59]} 18. b4 {[%clk 0:01:32]}  Qc7 {[%clk 0:01:58]} 19. Kg2 {[%clk 0:01:31]}  Bxc3 {[%clk 0:01:57]} 20. Rc1 {[%clk 0:01:31]}  Bg7 {[%clk 0:01:53]} 21. Bf3 {[%clk 0:01:25]}  e5 {[%clk 0:01:50]} 22. b5 {[%clk 0:01:17]}  e4 {[%clk 0:01:48]} 23. Be2 {[%clk 0:01:16]}  Be6 {[%clk 0:01:25]} 24. Be3 {[%clk 0:01:08]}  d4 {[%clk 0:01:23]} 25. Rxc6 {[%clk 0:01:05]}  Qd7 {[%clk 0:01:22]} 26. Bf4 {[%clk 0:00:55]}  Bh3+ {[%clk 0:01:20]} 27. Kg1 {[%clk 0:00:50]}  d3 {[%clk 0:01:17]} 28. Rf2 {[%clk 0:00:41]}  dxe2 {[%clk 0:01:14]} 29. Qxe2 {[%clk 0:00:40]}  e3 {[%clk 0:01:09]} 0-1


[Site "https://www.chess.com"]

[Event "Titled Tuesday Blitz January 03 Late 2023"]
[White "Souza, Gustavo Horokoski De"]
[Black "Jorajuria Mendoza, Algol"]
[WhiteFideId "2146584"]
[BlackFideId "5128897"]
[WhiteElo "1943"]
[BlackElo "2069"]
[Result "1/2-1/2"]
[Round "08"]
[TimeControl "180+2"]
[Date "2023.01.03"]
[WhiteClock "0:00:03"]
[BlackClock "0:00:35"]

1. d4 {[%clk 0:03:00]}  d5 {[%clk 0:02:58]} 2. c4 {[%clk 0:02:56]}  e6 {[%clk 0:02:59]} 3. Nc3 {[%clk 0:02:55]}  Bb4 {[%clk 0:02:59]} 4. cxd5 {[%clk 0:02:54]}  exd5 {[%clk 0:03:00]} 5. Nf3 {[%clk 0:02:51]}  c5 {[%clk 0:02:58]} 6. e3 {[%clk 0:02:48]}  Nc6 {[%clk 0:02:57]} 7. dxc5 {[%clk 0:02:46]}  Qa5 {[%clk 0:02:56]} 8. Bd2 {[%clk 0:02:22]}  Nf6 {[%clk 0:02:48]} 9. a3 {[%clk 0:02:22]}  Bxc3 {[%clk 0:02:43]} 10. Bxc3 {[%clk 0:02:22]}  Qxc5 {[%clk 0:02:43]} 11. Rc1 {[%clk 0:02:15]}  Qe7 {[%clk 0:02:38]} 12. Bb5 {[%clk 0:02:00]}  O-O {[%clk 0:02:35]} 13. O-O {[%clk 0:02:00]}  Bg4 {[%clk 0:02:21]} 14. Be2 {[%clk 0:01:58]}  Ne4 {[%clk 0:02:13]} 15. Nd4 {[%clk 0:01:49]}  Bxe2 {[%clk 0:02:09]} 16. Nxe2 {[%clk 0:01:46]}  Rfd8 {[%clk 0:02:05]} 17. Nd4 {[%clk 0:01:32]}  Ne5 {[%clk 0:02:03]} 18. Nf5 {[%clk 0:01:12]}  Qf6 {[%clk 0:02:03]} 19. Ng3 {[%clk 0:01:01]}  Qe6 {[%clk 0:01:48]} 20. Qd4 {[%clk 0:00:49]}  Nxg3 {[%clk 0:01:34]} 21. hxg3 {[%clk 0:00:47]}  f6 {[%clk 0:01:34]} 22. Rfd1 {[%clk 0:00:44]}  Rd7 {[%clk 0:01:22]} 23. Qa4 {[%clk 0:00:35]}  b6 {[%clk 0:01:16]} 24. Rd4 {[%clk 0:00:29]}  Rad8 {[%clk 0:01:14]} 25. Rcd1 {[%clk 0:00:28]}  Nc6 {[%clk 0:01:09]} 26. R4d2 {[%clk 0:00:27]}  Ne5 {[%clk 0:01:06]} 27. Bd4 {[%clk 0:00:26]}  Nc4 {[%clk 0:01:04]} 28. Rd3 {[%clk 0:00:21]}  h5 {[%clk 0:01:00]} 29. Bc3 {[%clk 0:00:17]}  Ne5 {[%clk 0:00:57]} 30. R3d2 {[%clk 0:00:17]}  Ng4 {[%clk 0:00:56]} 31. e4 {[%clk 0:00:12]}  dxe4 {[%clk 0:00:52]} 32. Rxd7 {[%clk 0:00:11]}  Re8 {[%clk 0:00:40]} 33. Rd8 {[%clk 0:00:08]}  Rxd8 {[%clk 0:00:38]} 34. Rxd8+ {[%clk 0:00:08]}  Kh7 {[%clk 0:00:39]} 35. Qe8 {[%clk 0:00:08]}  Qf5 {[%clk 0:00:34]} 36. Qh8+ {[%clk 0:00:04]}  Kg6 {[%clk 0:00:34]} 37. Qe8+ {[%clk 0:00:04]}  Kh7 {[%clk 0:00:35]} 38. Qg8+ {[%clk 0:00:05]}  Kg6 {[%clk 0:00:35]} 39. Qe8+ {[%clk 0:00:03]}  Kh7 {[%clk 0:00:35]} 1/2-1/2


[Site "https://www.chess.com"]

[Event "Titled Tuesday Blitz January 03 Late 2023"]
[White "Hernandez Sanchez, Elvis De La Caridad"]
[Black "Lock, Gavin R"]
[WhiteFideId "6400353"]
[BlackFideId "408646"]
[WhiteElo "2243"]
[BlackElo "2083"]
[Result "1-0"]
[Round "08"]
[TimeControl "180+2"]
[Date "2023.01.03"]
[WhiteClock "0:00:39"]
[BlackClock "0:00:46"]

1. e4 {[%clk 0:02:59]}  c5 {[%clk 0:02:59]} 2. Nf3 {[%clk 0:02:58]}  a6 {[%clk 0:02:59]} 3. Be2 {[%clk 0:02:51]}  b5 {[%clk 0:02:59]} 4. O-O {[%clk 0:02:51]}  Bb7 {[%clk 0:02:59]} 5. d4 {[%clk 0:02:47]}  cxd4 {[%clk 0:02:44]} 6. Nxd4 {[%clk 0:02:48]}  e5 {[%clk 0:02:08]} 7. Nf5 {[%clk 0:02:35]}  d5 {[%clk 0:02:07]} 8. exd5 {[%clk 0:02:34]}  Qxd5 {[%clk 0:02:04]} 9. Qxd5 {[%clk 0:02:33]}  Bxd5 {[%clk 0:02:05]} 10. Nc3 {[%clk 0:02:33]}  Be6 {[%clk 0:02:01]} 11. Bf3 {[%clk 0:02:27]}  Ra7 {[%clk 0:01:56]} 12. Ne3 {[%clk 0:02:21]}  Nf6 {[%clk 0:01:51]} 13. Re1 {[%clk 0:02:16]}  Nbd7 {[%clk 0:01:50]} 14. a4 {[%clk 0:02:11]}  b4 {[%clk 0:01:49]} 15. Ncd5 {[%clk 0:02:12]}  Bc5 {[%clk 0:01:44]} 16. c3 {[%clk 0:01:34]}  bxc3 {[%clk 0:01:35]} 17. Nxc3 {[%clk 0:01:12]}  O-O {[%clk 0:01:30]} 18. Rb1 {[%clk 0:01:11]}  Rb8 {[%clk 0:01:25]} 19. Ned5 {[%clk 0:01:08]}  Nxd5 {[%clk 0:01:19]} 20. Nxd5 {[%clk 0:01:09]}  Bd4 {[%clk 0:01:14]} 21. Ne7+ {[%clk 0:00:57]}  Kf8 {[%clk 0:01:14]} 22. Nc6 {[%clk 0:00:58]}  Raa8 {[%clk 0:01:11]} 23. Nxd4 {[%clk 0:00:52]}  exd4 {[%clk 0:01:09]} 24. Bf4 {[%clk 0:00:43]}  Rc8 {[%clk 0:00:55]} 25. Bxa8 {[%clk 0:00:40]}  Rxa8 {[%clk 0:00:56]} 26. b4 {[%clk 0:00:40]}  Nf6 {[%clk 0:00:49]} 27. b5 {[%clk 0:00:38]}  axb5 {[%clk 0:00:49]} 28. axb5 {[%clk 0:00:39]}  Nd5 {[%clk 0:00:45]} 29. Bd6+ {[%clk 0:00:39]}  Ke8 {[%clk 0:00:46]} 30. b6 {[%clk 0:00:39]} 1-0


[Site "https://www.chess.com"]

[Event "Titled Tuesday Blitz January 03 Late 2023"]
[White "Cruz Gomez, Miguel Angel"]
[Black "Papp, Petra"]
[WhiteFideId "5137160"]
[BlackFideId "739049"]
[WhiteElo "1950"]
[BlackElo "2343"]
[Result "0-1"]
[Round "08"]
[TimeControl "180+2"]
[Date "2023.01.03"]
[WhiteClock "0:00:20"]
[BlackClock "0:00:25"]

1. Nf3 {[%clk 0:03:00]}  Nf6 {[%clk 0:03:00]} 2. c4 {[%clk 0:03:01]}  g6 {[%clk 0:02:58]} 3. Nc3 {[%clk 0:03:01]}  Bg7 {[%clk 0:02:58]} 4. g3 {[%clk 0:03:01]}  O-O {[%clk 0:02:58]} 5. Bg2 {[%clk 0:03:02]}  c6 {[%clk 0:02:56]} 6. O-O {[%clk 0:02:57]}  d5 {[%clk 0:02:55]} 7. d4 {[%clk 0:02:56]}  e6 {[%clk 0:02:55]} 8. Qc2 {[%clk 0:02:55]}  Nbd7 {[%clk 0:02:52]} 9. e4 {[%clk 0:02:55]}  dxe4 {[%clk 0:02:52]} 10. Nxe4 {[%clk 0:02:56]}  Nxe4 {[%clk 0:02:52]} 11. Qxe4 {[%clk 0:02:57]}  Nf6 {[%clk 0:02:53]} 12. Qe2 {[%clk 0:02:58]}  Bd7 {[%clk 0:02:38]} 13. Bf4 {[%clk 0:02:54]}  Rc8 {[%clk 0:02:30]} 14. Rfd1 {[%clk 0:02:49]}  Qb6 {[%clk 0:02:29]} 15. Bd6 {[%clk 0:02:27]}  Rfe8 {[%clk 0:02:27]} 16. Ne5 {[%clk 0:02:19]}  Qd8 {[%clk 0:02:16]} 17. Ba3 {[%clk 0:01:56]}  Bf8 {[%clk 0:01:39]} 18. Bxf8 {[%clk 0:01:53]}  Rxf8 {[%clk 0:01:37]} 19. b4 {[%clk 0:01:50]}  Be8 {[%clk 0:01:36]} 20. Rd2 {[%clk 0:01:27]}  Nd7 {[%clk 0:01:35]} 21. Nf3 {[%clk 0:01:17]}  Qb6 {[%clk 0:01:23]} 22. a3 {[%clk 0:01:15]}  a5 {[%clk 0:01:13]} 23. c5 {[%clk 0:01:14]}  Qa7 {[%clk 0:01:09]} 24. Rb1 {[%clk 0:01:06]}  axb4 {[%clk 0:01:08]} 25. axb4 {[%clk 0:01:07]}  Nf6 {[%clk 0:01:06]} 26. Ne5 {[%clk 0:01:06]}  Nd5 {[%clk 0:01:02]} 27. Qg4 {[%clk 0:01:00]}  Qa3 {[%clk 0:00:50]} 28. b5 {[%clk 0:00:48]}  Nc3 {[%clk 0:00:43]} 29. Re1 {[%clk 0:00:32]}  Nxb5 {[%clk 0:00:38]} 30. h3 {[%clk 0:00:31]}  Qc3 {[%clk 0:00:33]} 31. Qd1 {[%clk 0:00:30]}  Rd8 {[%clk 0:00:30]} 32. Re3 {[%clk 0:00:29]}  Qb4 {[%clk 0:00:27]} 33. Re4 {[%clk 0:00:28]}  Nc3 {[%clk 0:00:26]} 34. Qe2 {[%clk 0:00:20]}  Nxe2+ {[%clk 0:00:25]} 0-1


[Site "https://www.chess.com"]

[Event "Titled Tuesday Blitz January 03 Late 2023"]
[White "Foerster-Yialamas, Lucas"]
[Black "Harish, Neeraj"]
[WhiteFideId "30901774"]
[BlackFideId "30958130"]
[WhiteElo "2151"]
[BlackElo "2232"]
[Result "0-1"]
[Round "08"]
[TimeControl "180+2"]
[Date "2023.01.03"]
[WhiteClock "0:01:17"]
[BlackClock "0:00:40"]

1. c4 {[%clk 0:03:00]}  Nf6 {[%clk 0:02:55]} 2. Nc3 {[%clk 0:02:59]}  g6 {[%clk 0:02:54]} 3. e4 {[%clk 0:02:58]}  e5 {[%clk 0:02:54]} 4. d4 {[%clk 0:02:56]}  d6 {[%clk 0:02:30]} 5. dxe5 {[%clk 0:02:55]}  dxe5 {[%clk 0:02:31]} 6. Qxd8+ {[%clk 0:02:56]}  Kxd8 {[%clk 0:02:31]} 7. Nf3 {[%clk 0:02:57]}  Nc6 {[%clk 0:02:30]} 8. Bg5 {[%clk 0:02:55]}  Be7 {[%clk 0:02:26]} 9. O-O-O+ {[%clk 0:02:55]}  Ke8 {[%clk 0:02:26]} 10. c5 {[%clk 0:02:49]}  Be6 {[%clk 0:02:23]} 11. Bb5 {[%clk 0:02:49]}  Nd7 {[%clk 0:02:11]} 12. Bxe7 {[%clk 0:02:45]}  Kxe7 {[%clk 0:02:12]} 13. Bxc6 {[%clk 0:02:44]}  bxc6 {[%clk 0:02:12]} 14. Nxe5 {[%clk 0:02:45]}  Nxe5 {[%clk 0:02:11]} 15. f4 {[%clk 0:02:36]}  Nd7 {[%clk 0:01:43]} 16. f5 {[%clk 0:02:17]}  gxf5 {[%clk 0:01:39]} 17. exf5 {[%clk 0:02:18]}  Bxf5 {[%clk 0:01:39]} 18. Rhe1+ {[%clk 0:02:05]}  Be6 {[%clk 0:01:39]} 19. Ne4 {[%clk 0:02:06]}  Rhg8 {[%clk 0:01:19]} 20. g3 {[%clk 0:02:05]}  Rab8 {[%clk 0:01:16]} 21. Rd4 {[%clk 0:01:54]}  Rb5 {[%clk 0:01:11]} 22. Rxd7+ {[%clk 0:01:51]}  Bxd7 {[%clk 0:01:07]} 23. Nd6+ {[%clk 0:01:43]}  Be6 {[%clk 0:01:04]} 24. Nxb5 {[%clk 0:01:43]}  cxb5 {[%clk 0:01:05]} 25. a3 {[%clk 0:01:43]}  Rg5 {[%clk 0:01:01]} 26. b4 {[%clk 0:01:42]}  Rh5 {[%clk 0:00:57]} 27. Re2 {[%clk 0:01:41]}  Rf5 {[%clk 0:00:52]} 28. Re3 {[%clk 0:01:30]}  Rf1+ {[%clk 0:00:51]} 29. Kd2 {[%clk 0:01:26]}  Rf2+ {[%clk 0:00:51]} 30. Re2 {[%clk 0:01:26]}  Rxe2+ {[%clk 0:00:51]} 31. Kxe2 {[%clk 0:01:27]}  Kf6 {[%clk 0:00:52]} 32. Kd3 {[%clk 0:01:26]}  Ke5 {[%clk 0:00:52]} 33. Ke3 {[%clk 0:01:26]}  c6 {[%clk 0:00:47]} 34. Kd3 {[%clk 0:01:25]}  Kd5 {[%clk 0:00:48]} 35. h4 {[%clk 0:01:23]}  h5 {[%clk 0:00:46]} 36. Ke3 {[%clk 0:01:17]}  Kc4 {[%clk 0:00:45]} 37. Kf4 {[%clk 0:01:17]}  Kb3 {[%clk 0:00:45]} 38. Kg5 {[%clk 0:01:18]}  Bg4 {[%clk 0:00:45]} 39. Kf6 {[%clk 0:01:18]}  Kxa3 {[%clk 0:00:45]} 40. Kxf7 {[%clk 0:01:19]}  Kxb4 {[%clk 0:00:45]} 41. Ke7 {[%clk 0:01:19]}  Kxc5 {[%clk 0:00:46]} 42. Kd8 {[%clk 0:01:19]}  b4 {[%clk 0:00:46]} 43. Kc7 {[%clk 0:01:20]}  b3 {[%clk 0:00:46]} 44. Kb7 {[%clk 0:01:17]}  b2 {[%clk 0:00:45]} 45. Ka8 {[%clk 0:01:18]}  b1=Q {[%clk 0:00:41]} 46. Kxa7 {[%clk 0:01:19]}  Bc8 {[%clk 0:00:40]} 47. Ka8 {[%clk 0:01:17]}  Qb7# {[%clk 0:00:40]} 0-1


[Site "https://www.chess.com"]

[Event "Titled Tuesday Blitz January 03 Late 2023"]
[White "Clawitter, Craig"]
[Black "Oliveira, Tiago Batista"]
[WhiteFideId "2023105"]
[BlackFideId "2108291"]
[WhiteElo "2050"]
[BlackElo "1991"]
[Result "1-0"]
[Round "08"]
[TimeControl "180+2"]
[Date "2023.01.03"]
[WhiteClock "0:00:21"]
[BlackClock "0:00:25"]

1. e4 {[%clk 0:03:00]}  c5 {[%clk 0:02:58]} 2. Nf3 {[%clk 0:03:00]}  d6 {[%clk 0:02:58]} 3. d4 {[%clk 0:03:01]}  cxd4 {[%clk 0:02:57]} 4. Nxd4 {[%clk 0:03:02]}  Nf6 {[%clk 0:02:57]} 5. Nc3 {[%clk 0:03:03]}  a6 {[%clk 0:02:57]} 6. Be3 {[%clk 0:03:03]}  e6 {[%clk 0:02:57]} 7. g4 {[%clk 0:03:02]}  Qc7 {[%clk 0:02:55]} 8. g5 {[%clk 0:02:59]}  Nfd7 {[%clk 0:02:54]} 9. f4 {[%clk 0:03:00]}  Nc6 {[%clk 0:02:51]} 10. Bg2 {[%clk 0:02:54]}  b5 {[%clk 0:02:50]} 11. O-O {[%clk 0:02:48]}  Bb7 {[%clk 0:02:50]} 12. f5 {[%clk 0:02:36]}  Nxd4 {[%clk 0:02:46]} 13. Qxd4 {[%clk 0:02:31]}  e5 {[%clk 0:02:43]} 14. Qd2 {[%clk 0:02:03]}  f6 {[%clk 0:02:40]} 15. a4 {[%clk 0:01:42]}  b4 {[%clk 0:02:38]} 16. Nd5 {[%clk 0:01:42]}  Bxd5 {[%clk 0:02:38]} 17. Qxd5 {[%clk 0:01:42]}  Rc8 {[%clk 0:02:37]} 18. c3 {[%clk 0:01:15]}  Qc4 {[%clk 0:02:34]} 19. cxb4 {[%clk 0:00:59]}  Qxd5 {[%clk 0:02:31]} 20. exd5 {[%clk 0:01:00]}  fxg5 {[%clk 0:02:23]} 21. Bxg5 {[%clk 0:00:45]}  Be7 {[%clk 0:02:16]} 22. Be3 {[%clk 0:00:44]}  Rb8 {[%clk 0:02:09]} 23. Bd2 {[%clk 0:00:38]}  O-O {[%clk 0:01:50]} 24. Rac1 {[%clk 0:00:36]}  Rfc8 {[%clk 0:01:46]} 25. Rc6 {[%clk 0:00:35]}  Nb6 {[%clk 0:01:44]} 26. b3 {[%clk 0:00:27]}  Rxc6 {[%clk 0:00:58]} 27. dxc6 {[%clk 0:00:27]}  d5 {[%clk 0:00:59]} 28. a5 {[%clk 0:00:26]}  Nc8 {[%clk 0:00:58]} 29. Bxd5+ {[%clk 0:00:26]}  Kf8 {[%clk 0:00:58]} 30. c7 {[%clk 0:00:22]}  Rb5 {[%clk 0:00:58]} 31. Be6 {[%clk 0:00:23]}  Na7 {[%clk 0:00:42]} 32. Be3 {[%clk 0:00:22]}  Nc8 {[%clk 0:00:28]} 33. Bxc8 {[%clk 0:00:22]}  Rxb4 {[%clk 0:00:25]} 34. Bd7 {[%clk 0:00:21]} 1-0


[Site "https://www.chess.com"]